[Event "Titled Tuesday Blitz April 25 Late 2023"]
[White "Munoz, Francisco Javier"]
[Black "Ghazarian, Kirk"]
[WhiteFideId "128368"]
[BlackFideId "30908604"]
[WhiteElo "2383"]
[BlackElo "2346"]
[Result "0-1"]
[Round "06"]
[TimeControl "180+2"]
[Date "2023.04.25"]
[WhiteClock "0:00:06"]
[BlackClock "0:00:09"]

1. e4 {[%clk 0:03:00]}  c5 {[%clk 0:02:57]} 2. Nf3 {[%clk 0:02:59]}  d6 {[%clk 0:02:58]} 3. Bb5+ {[%clk 0:02:58]}  Bd7 {[%clk 0:02:58]} 4. Bxd7+ {[%clk 0:02:58]}  Nxd7 {[%clk 0:02:59]} 5. c4 {[%clk 0:02:57]}  g6 {[%clk 0:02:57]} 6. Nc3 {[%clk 0:02:58]}  Bg7 {[%clk 0:02:57]} 7. O-O {[%clk 0:02:57]}  Ngf6 {[%clk 0:02:58]} 8. d4 {[%clk 0:02:57]}  cxd4 {[%clk 0:02:59]} 9. Nxd4 {[%clk 0:02:57]}  O-O {[%clk 0:03:00]} 10. b3 {[%clk 0:02:56]}  Nc5 {[%clk 0:02:57]} 11. Re1 {[%clk 0:02:54]}  Ne6 {[%clk 0:02:52]} 12. Nxe6 {[%clk 0:02:48]}  fxe6 {[%clk 0:02:53]} 13. Bb2 {[%clk 0:02:48]}  Nd7 {[%clk 0:02:53]} 14. Qd2 {[%clk 0:02:39]}  Rc8 {[%clk 0:02:46]} 15. Nb5 {[%clk 0:02:37]}  Bxb2 {[%clk 0:02:33]} 16. Qxb2 {[%clk 0:02:38]}  a6 {[%clk 0:02:33]} 17. Nd4 {[%clk 0:02:38]}  Rf6 {[%clk 0:02:33]} 18. Rad1 {[%clk 0:02:35]}  Qb6 {[%clk 0:02:31]} 19. Kh1 {[%clk 0:01:58]}  e5 {[%clk 0:02:23]} 20. Nf3 {[%clk 0:01:57]}  Rxc4 {[%clk 0:02:13]} 21. Qd2 {[%clk 0:01:51]}  Rc6 {[%clk 0:02:04]} 22. Qd5+ {[%clk 0:01:21]}  Kg7 {[%clk 0:01:59]} 23. Re3 {[%clk 0:01:12]}  Nc5 {[%clk 0:01:47]} 24. h4 {[%clk 0:01:01]}  Ne6 {[%clk 0:01:28]} 25. g3 {[%clk 0:01:00]}  Rc2 {[%clk 0:01:14]} 26. Rd2 {[%clk 0:00:59]}  Rxd2 {[%clk 0:01:11]} 27. Qxd2 {[%clk 0:01:00]}  Nc5 {[%clk 0:01:06]} 28. Kg2 {[%clk 0:00:54]}  Qc6 {[%clk 0:01:02]} 29. Qe2 {[%clk 0:00:50]}  h6 {[%clk 0:00:57]} 30. Nd2 {[%clk 0:00:46]}  Rf8 {[%clk 0:00:55]} 31. Rf3 {[%clk 0:00:42]}  Rxf3 {[%clk 0:00:49]} 32. Qxf3 {[%clk 0:00:43]}  Ne6 {[%clk 0:00:46]} 33. h5 {[%clk 0:00:41]}  g5 {[%clk 0:00:37]} 34. Qf5 {[%clk 0:00:37]}  Nf8 {[%clk 0:00:36]} 35. Nc4 {[%clk 0:00:33]}  e6 {[%clk 0:00:27]} 36. Qf3 {[%clk 0:00:33]}  b5 {[%clk 0:00:27]} 37. Ne3 {[%clk 0:00:33]}  Nd7 {[%clk 0:00:27]} 38. Qg4 {[%clk 0:00:26]}  Kf7 {[%clk 0:00:22]} 39. Qf3+ {[%clk 0:00:21]}  Kg7 {[%clk 0:00:17]} 40. Qg4 {[%clk 0:00:21]}  Nc5 {[%clk 0:00:13]} 41. f3 {[%clk 0:00:10]}  Kf7 {[%clk 0:00:13]} 42. Kh3 {[%clk 0:00:09]}  Nd3 {[%clk 0:00:11]} 43. Kg2 {[%clk 0:00:07]}  Qc1 {[%clk 0:00:10]} 44. Nf1 {[%clk 0:00:06]}  Qc2+ {[%clk 0:00:09]} 0-1


[Site "https://www.chess.com"]

[Event "Titled Tuesday Blitz April 25 Late 2023"]
[White "Oro, Faustino"]
[Black "Khandelwal, Ankush"]
[WhiteFideId "20000197"]
[BlackFideId "413470"]
[WhiteElo "1984"]
[BlackElo "2263"]
[Result "1-0"]
[Round "06"]
[TimeControl "180+2"]
[Date "2023.04.25"]
[WhiteClock "0:00:09"]
[BlackClock "0:00:07"]

1. Nf3 {[%clk 0:02:59]}  Nf6 {[%clk 0:02:57]} 2. d4 {[%clk 0:02:58]}  g6 {[%clk 0:02:53]} 3. b3 {[%clk 0:02:54]}  Bg7 {[%clk 0:02:40]} 4. Bb2 {[%clk 0:02:54]}  O-O {[%clk 0:02:38]} 5. Nbd2 {[%clk 0:02:52]}  d6 {[%clk 0:02:35]} 6. e3 {[%clk 0:02:51]}  Nbd7 {[%clk 0:02:31]} 7. Be2 {[%clk 0:02:45]}  Re8 {[%clk 0:02:28]} 8. O-O {[%clk 0:02:44]}  e5 {[%clk 0:02:26]} 9. dxe5 {[%clk 0:02:37]}  Ng4 {[%clk 0:02:26]} 10. h3 {[%clk 0:02:25]}  Ngxe5 {[%clk 0:02:24]} 11. Nxe5 {[%clk 0:02:25]}  Nxe5 {[%clk 0:02:23]} 12. Qc1 {[%clk 0:02:18]}  Qh4 {[%clk 0:02:13]} 13. Nf3 {[%clk 0:02:02]}  Qh6 {[%clk 0:01:50]} 14. Nh2 {[%clk 0:01:17]}  Bd7 {[%clk 0:01:28]} 15. c4 {[%clk 0:01:14]}  Bc6 {[%clk 0:01:26]} 16. f4 {[%clk 0:00:30]}  Nd7 {[%clk 0:01:13]} 17. Ng4 {[%clk 0:00:31]}  Qh4 {[%clk 0:01:13]} 18. Bxg7 {[%clk 0:00:30]}  Kxg7 {[%clk 0:01:10]} 19. Qc3+ {[%clk 0:00:31]}  f6 {[%clk 0:00:59]} 20. Bf3 {[%clk 0:00:30]}  h5 {[%clk 0:00:55]} 21. Nh2 {[%clk 0:00:29]}  Qg3 {[%clk 0:00:50]} 22. Rae1 {[%clk 0:00:21]}  Be4 {[%clk 0:00:36]} 23. Qd4 {[%clk 0:00:19]}  Bxf3 {[%clk 0:00:31]} 24. Nxf3 {[%clk 0:00:20]}  Nc5 {[%clk 0:00:29]} 25. Qd5 {[%clk 0:00:17]}  a5 {[%clk 0:00:28]} 26. Re2 {[%clk 0:00:06]}  Re7 {[%clk 0:00:23]} 27. Rfe1 {[%clk 0:00:06]}  Rae8 {[%clk 0:00:23]} 28. Qd4 {[%clk 0:00:04]}  Ne6 {[%clk 0:00:21]} 29. Qd2 {[%clk 0:00:04]}  Nc5 {[%clk 0:00:18]} 30. Nh2 {[%clk 0:00:03]}  Ne4 {[%clk 0:00:18]} 31. Qc2 {[%clk 0:00:04]}  g5 {[%clk 0:00:16]} 32. Nf1 {[%clk 0:00:05]}  Qh4 {[%clk 0:00:16]} 33. fxg5 {[%clk 0:00:05]}  Nxg5 {[%clk 0:00:16]} 34. Rf2 {[%clk 0:00:04]}  Kh6 {[%clk 0:00:15]} 35. Rd1 {[%clk 0:00:05]}  Re6 {[%clk 0:00:15]} 36. Qf5 {[%clk 0:00:04]}  Rg8 {[%clk 0:00:16]} 37. Kh1 {[%clk 0:00:03]}  Rg6 {[%clk 0:00:16]} 38. Rdd2 {[%clk 0:00:02]}  Re5 {[%clk 0:00:15]} 39. Qf4 {[%clk 0:00:02]}  Re4 {[%clk 0:00:12]} 40. Qxh4 {[%clk 0:00:01]}  Rxh4 {[%clk 0:00:13]} 41. Ng3 {[%clk 0:00:02]}  Nxh3 {[%clk 0:00:12]} 42. Nf5+ {[%clk 0:00:03]}  Kg5 {[%clk 0:00:11]} 43. gxh3 {[%clk 0:00:03]}  Rxh3+ {[%clk 0:00:11]} 44. Kg2 {[%clk 0:00:04]}  Rh4 {[%clk 0:00:03]} 45. Nxh4 {[%clk 0:00:05]}  Kxh4+ {[%clk 0:00:04]} 46. Kh2 {[%clk 0:00:06]}  Rg4 {[%clk 0:00:04]} 47. Rf4 {[%clk 0:00:06]}  f5 {[%clk 0:00:03]} 48. Rdf2 {[%clk 0:00:05]}  a4 {[%clk 0:00:01]} 49. Rxg4+ {[%clk 0:00:04]}  fxg4 {[%clk 0:00:02]} 50. Rf7 {[%clk 0:00:05]}  axb3 {[%clk 0:00:02]} 51. axb3 {[%clk 0:00:06]}  c6 {[%clk 0:00:02]} 52. Rxb7 {[%clk 0:00:05]}  d5 {[%clk 0:00:03]} 53. cxd5 {[%clk 0:00:06]}  cxd5 {[%clk 0:00:04]} 54. Rd7 {[%clk 0:00:06]}  g3+ {[%clk 0:00:05]} 55. Kg2 {[%clk 0:00:07]}  Kg4 {[%clk 0:00:06]} 56. Rxd5 {[%clk 0:00:07]}  Kh4 {[%clk 0:00:06]} 57. Rd4+ {[%clk 0:00:08]}  Kg5 {[%clk 0:00:07]} 58. Kxg3 {[%clk 0:00:09]}  h4+ {[%clk 0:00:07]} 59. Rxh4 {[%clk 0:00:09]} 1-0


[Site "https://www.chess.com"]

[Event "Titled Tuesday Blitz April 25 Late 2023"]
[White "Flynn, Jacob"]
[Black "Bilych, Olexiy"]
[WhiteFideId "2509393"]
[BlackFideId "14156504"]
[WhiteElo "2053"]
[BlackElo "2320"]
[Result "0-1"]
[Round "06"]
[TimeControl "180+2"]
[Date "2023.04.25"]
[WhiteClock "0:00:14"]
[BlackClock "0:00:18"]

1. d4 {[%clk 0:03:00]}  Nf6 {[%clk 0:03:00]} 2. c4 {[%clk 0:03:01]}  e6 {[%clk 0:03:00]} 3. Nc3 {[%clk 0:02:59]}  d5 {[%clk 0:03:01]} 4. cxd5 {[%clk 0:02:59]}  exd5 {[%clk 0:03:01]} 5. Bg5 {[%clk 0:02:59]}  c6 {[%clk 0:03:01]} 6. e3 {[%clk 0:02:59]}  Be7 {[%clk 0:03:01]} 7. Qc2 {[%clk 0:02:58]}  O-O {[%clk 0:03:02]} 8. Bd3 {[%clk 0:02:59]}  h6 {[%clk 0:03:02]} 9. Bh4 {[%clk 0:02:59]}  Ne8 {[%clk 0:03:03]} 10. Bxe7 {[%clk 0:02:57]}  Qxe7 {[%clk 0:03:04]} 11. Nf3 {[%clk 0:02:50]}  Nd6 {[%clk 0:03:02]} 12. O-O {[%clk 0:02:48]}  Be6 {[%clk 0:03:00]} 13. Rab1 {[%clk 0:02:48]}  a5 {[%clk 0:02:59]} 14. a3 {[%clk 0:02:48]}  Nd7 {[%clk 0:02:57]} 15. b4 {[%clk 0:02:48]}  axb4 {[%clk 0:02:57]} 16. axb4 {[%clk 0:02:49]}  b5 {[%clk 0:02:58]} 17. Ne5 {[%clk 0:02:40]}  Nxe5 {[%clk 0:02:23]} 18. dxe5 {[%clk 0:02:39]}  Nc4 {[%clk 0:02:14]} 19. Bxc4 {[%clk 0:02:35]}  bxc4 {[%clk 0:02:15]} 20. Ne2 {[%clk 0:02:29]}  Rab8 {[%clk 0:02:12]} 21. Nd4 {[%clk 0:02:28]}  Rfc8 {[%clk 0:02:12]} 22. Qc3 {[%clk 0:02:24]}  Rb6 {[%clk 0:02:08]} 23. f4 {[%clk 0:02:16]}  Rcb8 {[%clk 0:02:04]} 24. f5 {[%clk 0:02:15]}  Bd7 {[%clk 0:02:04]} 25. Nc2 {[%clk 0:02:04]}  Re8 {[%clk 0:02:01]} 26. Qd4 {[%clk 0:01:58]}  Rbb8 {[%clk 0:01:56]} 27. e6 {[%clk 0:01:53]}  fxe6 {[%clk 0:01:55]} 28. f6 {[%clk 0:01:47]}  gxf6 {[%clk 0:01:54]} 29. Qh4 {[%clk 0:01:40]}  Kg7 {[%clk 0:01:41]} 30. Rf3 {[%clk 0:01:37]}  e5 {[%clk 0:01:40]} 31. Rbf1 {[%clk 0:01:22]}  Rf8 {[%clk 0:01:39]} 32. Rg3+ {[%clk 0:01:05]}  Kh7 {[%clk 0:01:39]} 33. h3 {[%clk 0:00:56]}  Ra8 {[%clk 0:01:30]} 34. Ne1 {[%clk 0:00:51]}  Ra1 {[%clk 0:01:25]} 35. Kh2 {[%clk 0:00:47]}  Rf7 {[%clk 0:01:16]} 36. Qh5 {[%clk 0:00:39]}  Rg7 {[%clk 0:01:16]} 37. Rgf3 {[%clk 0:00:39]}  Rg6 {[%clk 0:01:05]} 38. R3f2 {[%clk 0:00:33]}  Qg7 {[%clk 0:01:03]} 39. Qh4 {[%clk 0:00:31]}  c3 {[%clk 0:00:51]} 40. b5 {[%clk 0:00:23]}  cxb5 {[%clk 0:00:49]} 41. Qb4 {[%clk 0:00:23]}  Rc1 {[%clk 0:00:38]} 42. Qa3 {[%clk 0:00:23]}  Rd1 {[%clk 0:00:26]} 43. Qxc3 {[%clk 0:00:23]}  d4 {[%clk 0:00:26]} 44. Qb3 {[%clk 0:00:21]}  dxe3 {[%clk 0:00:24]} 45. Qxe3 {[%clk 0:00:21]}  Bc6 {[%clk 0:00:24]} 46. Qe2 {[%clk 0:00:19]}  Rc1 {[%clk 0:00:20]} 47. Qd2 {[%clk 0:00:18]}  Rc4 {[%clk 0:00:19]} 48. Nd3 {[%clk 0:00:16]}  Rd4 {[%clk 0:00:18]} 49. Qe3 {[%clk 0:00:16]}  Rxg2+ {[%clk 0:00:18]} 50. Kh1 {[%clk 0:00:14]}  Rxf2+ {[%clk 0:00:18]} 0-1


[Site "https://www.chess.com"]

[Event "Titled Tuesday Blitz April 25 Late 2023"]
[White "Ozates, Tuna"]
[Black "Pakleza, Zbigniew"]
[WhiteFideId "6354521"]
[BlackFideId "1119290"]
[WhiteElo "2151"]
[BlackElo "2410"]
[Result "0-1"]
[Round "06"]
[TimeControl "180+2"]
[Date "2023.04.25"]
[WhiteClock "0:00:02"]
[BlackClock "0:00:03"]

1. e4 {[%clk 0:03:00]}  d6 {[%clk 0:02:59]} 2. d4 {[%clk 0:03:00]}  Nf6 {[%clk 0:03:00]} 3. Nc3 {[%clk 0:03:01]}  c6 {[%clk 0:02:59]} 4. f4 {[%clk 0:03:00]}  Qb6 {[%clk 0:02:58]} 5. e5 {[%clk 0:03:00]}  Nd5 {[%clk 0:02:56]} 6. Nxd5 {[%clk 0:03:00]}  cxd5 {[%clk 0:02:57]} 7. c3 {[%clk 0:02:59]}  Bf5 {[%clk 0:02:55]} 8. Nf3 {[%clk 0:02:57]}  e6 {[%clk 0:02:55]} 9. a4 {[%clk 0:02:55]}  Nc6 {[%clk 0:02:54]} 10. b4 {[%clk 0:02:48]}  Be7 {[%clk 0:02:52]} 11. a5 {[%clk 0:02:47]}  Qc7 {[%clk 0:02:52]} 12. a6 {[%clk 0:02:40]}  b6 {[%clk 0:02:50]} 13. Bd2 {[%clk 0:02:35]}  O-O {[%clk 0:02:48]} 14. Bb5 {[%clk 0:02:35]}  Rac8 {[%clk 0:02:46]} 15. O-O {[%clk 0:02:35]}  h6 {[%clk 0:02:45]} 16. h3 {[%clk 0:02:33]}  Be4 {[%clk 0:02:33]} 17. Qe2 {[%clk 0:02:25]}  f5 {[%clk 0:02:16]} 18. exf6 {[%clk 0:02:20]}  Bxf6 {[%clk 0:02:15]} 19. Bd3 {[%clk 0:02:19]}  Bxd3 {[%clk 0:02:10]} 20. Qxd3 {[%clk 0:02:20]}  Qf7 {[%clk 0:02:07]} 21. Rae1 {[%clk 0:02:18]}  Rfe8 {[%clk 0:02:03]} 22. Nh2 {[%clk 0:02:08]}  Ne7 {[%clk 0:01:46]} 23. g4 {[%clk 0:01:54]}  Qg6 {[%clk 0:01:36]} 24. Qxg6 {[%clk 0:01:10]}  Nxg6 {[%clk 0:01:37]} 25. g5 {[%clk 0:01:11]}  hxg5 {[%clk 0:01:22]} 26. fxg5 {[%clk 0:01:11]}  Bd8 {[%clk 0:01:20]} 27. Ng4 {[%clk 0:01:07]}  b5 {[%clk 0:01:07]} 28. Kg2 {[%clk 0:01:07]}  Rc6 {[%clk 0:01:00]} 29. Kg3 {[%clk 0:00:56]}  Rxa6 {[%clk 0:00:56]} 30. Ra1 {[%clk 0:00:49]}  Rxa1 {[%clk 0:00:52]} 31. Rxa1 {[%clk 0:00:49]}  Bb6 {[%clk 0:00:52]} 32. h4 {[%clk 0:00:48]}  Ne7 {[%clk 0:00:48]} 33. h5 {[%clk 0:00:47]}  Nf5+ {[%clk 0:00:47]} 34. Kh3 {[%clk 0:00:46]}  Kf7 {[%clk 0:00:45]} 35. Rf1 {[%clk 0:00:33]}  Rh8 {[%clk 0:00:43]} 36. h6 {[%clk 0:00:34]}  Kg6 {[%clk 0:00:42]} 37. Re1 {[%clk 0:00:30]}  Re8 {[%clk 0:00:36]} 38. hxg7 {[%clk 0:00:22]}  Nxg7 {[%clk 0:00:37]} 39. Nf6 {[%clk 0:00:22]}  Rh8+ {[%clk 0:00:36]} 40. Kg4 {[%clk 0:00:20]}  Rh2 {[%clk 0:00:35]} 41. Bf4 {[%clk 0:00:19]}  Rg2+ {[%clk 0:00:33]} 42. Kf3 {[%clk 0:00:18]}  Rc2 {[%clk 0:00:34]} 43. Bxd6 {[%clk 0:00:09]}  Rxc3+ {[%clk 0:00:33]} 44. Kg4 {[%clk 0:00:09]}  Bxd4 {[%clk 0:00:30]} 45. Be5 {[%clk 0:00:06]}  Rc4 {[%clk 0:00:25]} 46. Kf3 {[%clk 0:00:04]}  Rxb4 {[%clk 0:00:23]} 47. Ng4 {[%clk 0:00:04]}  Nf5 {[%clk 0:00:20]} 48. Bf4 {[%clk 0:00:02]}  Rb3+ {[%clk 0:00:19]} 49. Kg2 {[%clk 0:00:02]}  Ng7 {[%clk 0:00:14]} 50. Be5 {[%clk 0:00:01]}  Bxe5 {[%clk 0:00:09]} 51. Rxe5 {[%clk 0:00:02]}  Rb4 {[%clk 0:00:06]} 52. Kg3 {[%clk 0:00:02]}  Re4 {[%clk 0:00:05]} 53. Rxe4 {[%clk 0:00:02]}  dxe4 {[%clk 0:00:06]} 54. Kf4 {[%clk 0:00:02]}  a5 {[%clk 0:00:02]} 55. Ne5+ {[%clk 0:00:02]}  Kh5 {[%clk 0:00:02]} 56. Nc6 {[%clk 0:00:02]}  a4 {[%clk 0:00:02]} 57. Nb4 {[%clk 0:00:01]}  e3 {[%clk 0:00:02]} 58. Kxe3 {[%clk 0:00:01]}  Kxg5 {[%clk 0:00:03]} 59. Kd4 {[%clk 0:00:02]}  Nf5+ {[%clk 0:00:01]} 60. Kc5 {[%clk 0:00:03]}  a3 {[%clk 0:00:01]} 61. Kxb5 {[%clk 0:00:03]}  e5 {[%clk 0:00:02]} 62. Kc4 {[%clk 0:00:04]}  e4 {[%clk 0:00:02]} 63. Nc2 {[%clk 0:00:03]}  a2 {[%clk 0:00:02]} 64. Kb3 {[%clk 0:00:03]}  Nd4+ {[%clk 0:00:02]} 65. Nxd4 {[%clk 0:00:02]}  a1=Q {[%clk 0:00:02]} 66. Kc4 {[%clk 0:00:02]}  Qe1 {[%clk 0:00:02]} 67. Kd5 {[%clk 0:00:03]}  Qf1 {[%clk 0:00:01]} 68. Kxe4 {[%clk 0:00:03]}  Qe1+ {[%clk 0:00:02]} 69. Kd3 {[%clk 0:00:03]}  Kg4 {[%clk 0:00:03]} 70. Kc2 {[%clk 0:00:03]}  Qe4+ {[%clk 0:00:02]} 71. Kc3 {[%clk 0:00:04]}  Kf4 {[%clk 0:00:03]} 72. Nc2 {[%clk 0:00:04]}  Ke5 {[%clk 0:00:03]} 73. Nb4 {[%clk 0:00:04]}  Qb7 {[%clk 0:00:03]} 74. Kc4 {[%clk 0:00:04]}  Qc7+ {[%clk 0:00:03]} 75. Kb5 {[%clk 0:00:04]}  Kd6 {[%clk 0:00:03]} 76. Na6 {[%clk 0:00:04]}  Qc6+ {[%clk 0:00:02]} 77. Ka5 {[%clk 0:00:05]}  Qb7 {[%clk 0:00:02]} 78. Nb4 {[%clk 0:00:03]}  Kc5 {[%clk 0:00:02]} 79. Na6+ {[%clk 0:00:04]}  Kc4 {[%clk 0:00:03]} 80. Nc5 {[%clk 0:00:02]}  Qb5# {[%clk 0:00:03]} 0-1


[Site "https://www.chess.com"]

[Event "Titled Tuesday Blitz April 25 Late 2023"]
[White "Liu, Eric"]
[Black "Sviridov, Valery"]
[WhiteFideId "30960240"]
[BlackFideId "4120680"]
[WhiteElo "2094"]
[BlackElo "2457"]
[Result "0-1"]
[Round "06"]
[TimeControl "180+2"]
[Date "2023.04.25"]
[WhiteClock "0:01:22"]
[BlackClock "0:01:04"]

1. b3 {[%clk 0:03:00]}  Nf6 {[%clk 0:02:59]} 2. Bb2 {[%clk 0:03:01]}  g6 {[%clk 0:03:00]} 3. e3 {[%clk 0:03:01]}  Bg7 {[%clk 0:03:00]} 4. h4 {[%clk 0:03:01]}  d5 {[%clk 0:02:59]} 5. c4 {[%clk 0:03:01]}  c6 {[%clk 0:02:53]} 6. Nf3 {[%clk 0:02:59]}  h6 {[%clk 0:02:51]} 7. Qc2 {[%clk 0:02:55]}  Na6 {[%clk 0:02:49]} 8. a3 {[%clk 0:02:54]}  Bf5 {[%clk 0:02:48]} 9. d3 {[%clk 0:02:55]}  dxc4 {[%clk 0:02:41]} 10. bxc4 {[%clk 0:02:56]}  Nc5 {[%clk 0:02:39]} 11. e4 {[%clk 0:02:55]}  Bg4 {[%clk 0:02:39]} 12. Ne5 {[%clk 0:02:53]}  Bc8 {[%clk 0:02:36]} 13. Nd2 {[%clk 0:02:52]}  O-O {[%clk 0:02:35]} 14. d4 {[%clk 0:02:52]}  Ne6 {[%clk 0:02:35]} 15. Nef3 {[%clk 0:02:51]}  Qb6 {[%clk 0:02:24]} 16. Rb1 {[%clk 0:02:42]}  Qa5 {[%clk 0:02:21]} 17. Bc3 {[%clk 0:02:39]}  Qc7 {[%clk 0:02:19]} 18. e5 {[%clk 0:02:36]}  Ng4 {[%clk 0:02:18]} 19. Bd3 {[%clk 0:02:36]}  Nf4 {[%clk 0:02:18]} 20. Bf1 {[%clk 0:02:31]}  Bf5 {[%clk 0:02:15]} 21. Ne4 {[%clk 0:02:24]}  c5 {[%clk 0:02:14]} 22. d5 {[%clk 0:02:22]}  Nxe5 {[%clk 0:02:12]} 23. Nfd2 {[%clk 0:02:15]}  b6 {[%clk 0:02:09]} 24. g3 {[%clk 0:02:15]}  Nh5 {[%clk 0:02:08]} 25. Be2 {[%clk 0:02:13]}  Nf6 {[%clk 0:02:04]} 26. f3 {[%clk 0:02:06]}  Nxe4 {[%clk 0:02:01]} 27. fxe4 {[%clk 0:02:05]}  Bd7 {[%clk 0:01:56]} 28. Kf2 {[%clk 0:02:04]}  f5 {[%clk 0:01:54]} 29. Kg2 {[%clk 0:02:02]}  f4 {[%clk 0:01:52]} 30. Bxe5 {[%clk 0:01:58]}  Qxe5 {[%clk 0:01:48]} 31. g4 {[%clk 0:01:57]}  Qd6 {[%clk 0:01:45]} 32. Bf3 {[%clk 0:01:56]}  Bd4 {[%clk 0:01:39]} 33. Nb3 {[%clk 0:01:55]}  e5 {[%clk 0:01:39]} 34. Qe2 {[%clk 0:01:53]}  Kg7 {[%clk 0:01:36]} 35. Nc1 {[%clk 0:01:50]}  a6 {[%clk 0:01:33]} 36. g5 {[%clk 0:01:44]}  hxg5 {[%clk 0:01:31]} 37. hxg5 {[%clk 0:01:45]}  Rh8 {[%clk 0:01:30]} 38. Nb3 {[%clk 0:01:45]}  Qe7 {[%clk 0:01:29]} 39. Nxd4 {[%clk 0:01:44]}  Qxg5+ {[%clk 0:01:29]} 40. Kf2 {[%clk 0:01:43]}  Rxh1 {[%clk 0:01:25]} 41. Ne6+ {[%clk 0:01:31]}  Bxe6 {[%clk 0:01:25]} 42. Rxh1 {[%clk 0:01:32]}  Qg3+ {[%clk 0:01:24]} 43. Kf1 {[%clk 0:01:32]}  Bh3+ {[%clk 0:01:24]} 44. Rxh3 {[%clk 0:01:25]}  Qxh3+ {[%clk 0:01:25]} 45. Bg2 {[%clk 0:01:26]}  Qxa3 {[%clk 0:01:24]} 46. Qg4 {[%clk 0:01:26]}  Qc1+ {[%clk 0:01:22]} 47. Kf2 {[%clk 0:01:26]}  Qe3+ {[%clk 0:01:21]} 48. Kf1 {[%clk 0:01:27]}  Rf8 {[%clk 0:01:03]} 49. Qe6 {[%clk 0:01:22]}  Qc1+ {[%clk 0:01:03]} 50. Kf2 {[%clk 0:01:22]}  Qb2+ {[%clk 0:01:03]} 51. Kf1 {[%clk 0:01:22]}  f3 {[%clk 0:01:04]} 0-1


[Site "https://www.chess.com"]

[Event "Titled Tuesday Blitz April 25 Late 2023"]
[White "Sabuk, Piotr"]
[Black "Roebers, Eline"]
[WhiteFideId "1137565"]
[BlackFideId "1058401"]
[WhiteElo "2298"]
[BlackElo "2356"]
[Result "0-1"]
[Round "06"]
[TimeControl "180+2"]
[Date "2023.04.25"]
[WhiteClock "0:00:03"]
[BlackClock "0:00:15"]

1. d4 {[%clk 0:03:00]}  f5 {[%clk 0:02:59]} 2. Nf3 {[%clk 0:02:58]}  Nf6 {[%clk 0:02:59]} 3. c4 {[%clk 0:02:56]}  g6 {[%clk 0:02:59]} 4. e3 {[%clk 0:02:48]}  Bg7 {[%clk 0:02:57]} 5. b4 {[%clk 0:02:47]}  O-O {[%clk 0:02:57]} 6. Be2 {[%clk 0:02:44]}  c6 {[%clk 0:02:57]} 7. O-O {[%clk 0:02:43]}  d5 {[%clk 0:02:56]} 8. Qb3 {[%clk 0:02:38]}  Kh8 {[%clk 0:02:50]} 9. Nc3 {[%clk 0:02:38]}  Be6 {[%clk 0:02:49]} 10. b5 {[%clk 0:02:31]}  Nbd7 {[%clk 0:02:32]} 11. Ba3 {[%clk 0:02:29]}  Bg8 {[%clk 0:02:27]} 12. Rfc1 {[%clk 0:02:11]}  Nb6 {[%clk 0:02:13]} 13. bxc6 {[%clk 0:02:05]}  bxc6 {[%clk 0:02:12]} 14. Ne5 {[%clk 0:01:59]}  dxc4 {[%clk 0:02:00]} 15. Qc2 {[%clk 0:01:47]}  Rc8 {[%clk 0:01:54]} 16. Na4 {[%clk 0:01:45]}  Nfd5 {[%clk 0:01:45]} 17. Nxc4 {[%clk 0:01:42]}  Nxa4 {[%clk 0:01:41]} 18. Qxa4 {[%clk 0:01:41]}  f4 {[%clk 0:01:42]} 19. e4 {[%clk 0:01:36]}  Nb6 {[%clk 0:01:39]} 20. Nxb6 {[%clk 0:01:34]}  axb6 {[%clk 0:01:40]} 21. e5 {[%clk 0:01:29]}  Bd5 {[%clk 0:01:38]} 22. Bg4 {[%clk 0:01:11]}  Ra8 {[%clk 0:01:29]} 23. Qb4 {[%clk 0:01:11]}  f3 {[%clk 0:01:20]} 24. Qxe7 {[%clk 0:01:06]}  fxg2 {[%clk 0:01:12]} 25. Qxd8 {[%clk 0:01:04]}  Rfxd8 {[%clk 0:01:13]} 26. Bd6 {[%clk 0:01:00]}  Bh6 {[%clk 0:01:07]} 27. Rc2 {[%clk 0:00:55]}  Ra4 {[%clk 0:00:53]} 28. Bc7 {[%clk 0:00:37]}  Rf8 {[%clk 0:00:36]} 29. Bxb6 {[%clk 0:00:33]}  Rf4 {[%clk 0:00:37]} 30. Bd7 {[%clk 0:00:27]}  Ra6 {[%clk 0:00:32]} 31. Bc5 {[%clk 0:00:19]}  Rh4 {[%clk 0:00:32]} 32. h3 {[%clk 0:00:11]}  Bg7 {[%clk 0:00:19]} 33. Be7 {[%clk 0:00:11]}  Rxd4 {[%clk 0:00:18]} 34. Rb1 {[%clk 0:00:11]}  h5 {[%clk 0:00:17]} 35. Bd6 {[%clk 0:00:09]}  Re4 {[%clk 0:00:14]} 36. Rb8+ {[%clk 0:00:07]}  Kh7 {[%clk 0:00:14]} 37. e6 {[%clk 0:00:06]}  Re1+ {[%clk 0:00:14]} 38. Kh2 {[%clk 0:00:03]}  g1=Q# {[%clk 0:00:15]} 0-1


[Site "https://www.chess.com"]

[Event "Titled Tuesday Blitz April 25 Late 2023"]
[White "Kavutskiy, Konstantin"]
[Black "Kucuksari, Kaan"]
[WhiteFideId "2026384"]
[BlackFideId "6380166"]
[WhiteElo "2323"]
[BlackElo "2364"]
[Result "1-0"]
[Round "06"]
[TimeControl "180+2"]
[Date "2023.04.25"]
[WhiteClock "0:00:44"]
[BlackClock "0:00:05"]

1. d4 {[%clk 0:03:00]}  Nf6 {[%clk 0:02:57]} 2. Bg5 {[%clk 0:03:00]}  d5 {[%clk 0:02:53]} 3. Nd2 {[%clk 0:03:00]}  e6 {[%clk 0:02:52]} 4. e3 {[%clk 0:03:00]}  Be7 {[%clk 0:02:52]} 5. Bd3 {[%clk 0:02:59]}  b6 {[%clk 0:02:51]} 6. c3 {[%clk 0:02:58]}  Bb7 {[%clk 0:02:51]} 7. Bxf6 {[%clk 0:02:54]}  Bxf6 {[%clk 0:02:49]} 8. f4 {[%clk 0:02:54]}  Nd7 {[%clk 0:02:37]} 9. Ngf3 {[%clk 0:02:54]}  Qe7 {[%clk 0:02:34]} 10. O-O {[%clk 0:02:53]}  h5 {[%clk 0:02:32]} 11. Ne5 {[%clk 0:02:52]}  Nxe5 {[%clk 0:02:28]} 12. fxe5 {[%clk 0:02:48]}  Bg5 {[%clk 0:02:27]} 13. Qe2 {[%clk 0:02:42]}  h4 {[%clk 0:02:09]} 14. h3 {[%clk 0:02:40]}  O-O-O {[%clk 0:02:02]} 15. b4 {[%clk 0:02:33]}  f6 {[%clk 0:02:01]} 16. Nf3 {[%clk 0:02:27]}  fxe5 {[%clk 0:01:33]} 17. Nxe5 {[%clk 0:02:25]}  Bf6 {[%clk 0:01:33]} 18. Ng6 {[%clk 0:02:20]}  Qd6 {[%clk 0:01:34]} 19. Nxh8 {[%clk 0:02:19]}  Rxh8 {[%clk 0:01:35]} 20. e4 {[%clk 0:02:04]}  e5 {[%clk 0:01:33]} 21. Rae1 {[%clk 0:01:48]}  Kb8 {[%clk 0:01:14]} 22. exd5 {[%clk 0:01:43]}  Qxd5 {[%clk 0:00:22]} 23. Be4 {[%clk 0:01:31]}  Qxe4 {[%clk 0:00:21]} 24. Qxe4 {[%clk 0:01:31]}  Bxe4 {[%clk 0:00:21]} 25. Rxe4 {[%clk 0:01:31]}  exd4 {[%clk 0:00:22]} 26. cxd4 {[%clk 0:01:31]}  Kb7 {[%clk 0:00:21]} 27. Rd1 {[%clk 0:01:24]}  Rh5 {[%clk 0:00:11]} 28. d5 {[%clk 0:01:22]}  Rf5 {[%clk 0:00:10]} 29. a4 {[%clk 0:01:17]}  a6 {[%clk 0:00:08]} 30. b5 {[%clk 0:01:10]}  axb5 {[%clk 0:00:08]} 31. axb5 {[%clk 0:01:10]}  Rh5 {[%clk 0:00:08]} 32. Re8 {[%clk 0:00:55]}  Be5 {[%clk 0:00:07]} 33. Re7 {[%clk 0:00:51]}  Bd6 {[%clk 0:00:07]} 34. Rxg7 {[%clk 0:00:51]}  Rf5 {[%clk 0:00:06]} 35. Rh7 {[%clk 0:00:47]}  Bg3 {[%clk 0:00:06]} 36. d6 {[%clk 0:00:47]}  Rc5 {[%clk 0:00:05]} 37. d7 {[%clk 0:00:44]} 1-0


[Site "https://www.chess.com"]